[Event "*** Titled Tuesday Blitz"]
[Site "Chess.com"]
[Date "2020.10.20"]
[Round "1"]
[White "kidagent"]
[Black "tlomigtlis"]
[Result "1-0"]
[WhiteElo "2299"]
[BlackElo "2588"]
[TimeControl "180+1"]
[EndTime "10:08:28 PDT"]
[Termination "kidagent won by checkmate"]

1. e4 {[%clk 0:03:00.9]} 1... c5 {[%clk 0:02:56.8]} 2. Nf3 {[%clk 0:03:01]} 2...
d6 {[%clk 0:02:57.2]} 3. d4 {[%clk 0:03:01.2]} 3... cxd4 {[%clk 0:02:58.1]} 4.
Nxd4 {[%clk 0:03:01.7]} 4... Nf6 {[%clk 0:02:58.6]} 5. Nc3 {[%clk 0:03:02.2]}
5... a6 {[%clk 0:02:59]} 6. Bg5 {[%clk 0:03:02.3]} 6... Nbd7 {[%clk 0:02:58.4]}
7. Qe2 {[%clk 0:03:01.8]} 7... h6 {[%clk 0:02:57.2]} 8. Bh4 {[%clk 0:03:01.6]}
8... e5 {[%clk 0:02:57.4]} 9. Nf5 {[%clk 0:02:53.1]} 9... g6 {[%clk 0:02:57.5]}
10. Ne3 {[%clk 0:02:48.3]} 10... Be7 {[%clk 0:02:58]} 11. Bxf6 {[%clk
0:02:39.2]} 11... Nxf6 {[%clk 0:02:57.2]} 12. O-O-O {[%clk 0:02:40.1]} 12... b5
{[%clk 0:02:56.2]} 13. h3 {[%clk 0:02:34.2]} 13... Bb7 {[%clk 0:02:54.3]} 14.
Ned5 {[%clk 0:02:33.2]} 14... Rc8 {[%clk 0:02:50.8]} 15. g4 {[%clk 0:02:28]}
15... b4 {[%clk 0:02:22.2]} 16. Nxf6+ {[%clk 0:02:15.1]} 16... Bxf6 {[%clk
0:02:21.7]} 17. Nd5 {[%clk 0:02:16]} 17... Bg5+ {[%clk 0:02:20.6]} 18. Kb1
{[%clk 0:02:14.5]} 18... Qa5 {[%clk 0:02:20.4]} 19. Bg2 {[%clk 0:02:03.1]} 19...
O-O {[%clk 0:02:09.1]} 20. h4 {[%clk 0:02:01.7]} 20... Bd8 {[%clk 0:02:08.6]}
21. g5 {[%clk 0:01:48.2]} 21... h5 {[%clk 0:01:58.1]} 22. Nf6+ {[%clk
0:01:39.2]} 22... Kg7 {[%clk 0:01:38.2]} 23. Rxd6 {[%clk 0:01:32.9]} 23... Qc5
{[%clk 0:01:31]} 24. Rhd1 {[%clk 0:01:24.4]} 24... Bxf6 {[%clk 0:01:15.9]} 25.
gxf6+ {[%clk 0:01:23.4]} 25... Kh7 {[%clk 0:01:14.6]} 26. Bf3 {[%clk 0:01:18.2]}
26... Rc6 {[%clk 0:01:06.9]} 27. Rxc6 {[%clk 0:01:10]} 27... Qxc6 {[%clk
0:01:07.8]} 28. Bxh5 {[%clk 0:01:05.2]} 28... Qxf6 {[%clk 0:01:04.8]} 29. Bg4
{[%clk 0:01:02.3]} 29... Rd8 {[%clk 0:00:59.9]} 30. h5 {[%clk 0:00:58.5]} 30...
Rxd1+ {[%clk 0:00:56.8]} 31. Qxd1 {[%clk 0:00:58.1]} 31... Bxe4 {[%clk
0:00:57.3]} 32. hxg6+ {[%clk 0:00:58.2]} 32... Bxg6 {[%clk 0:00:57.7]} 33. f3
{[%clk 0:00:51.7]} 33... Kg7 {[%clk 0:00:54.7]} 34. Qd2 {[%clk 0:00:46.1]} 34...
Qc6 {[%clk 0:00:53.2]} 35. a3 {[%clk 0:00:28.1]} 35... b3 {[%clk 0:00:49.8]} 36.
Qc3 {[%clk 0:00:21.1]} 36... bxc2+ {[%clk 0:00:48.9]} 37. Kc1 {[%clk 0:00:20.9]}
37... Qd6 {[%clk 0:00:48.2]} 38. f4 {[%clk 0:00:20.4]} 38... Bf5 {[%clk
0:00:26.3]} 39. Be2 {[%clk 0:00:15.9]} 39... f6 {[%clk 0:00:25.5]} 40. fxe5
{[%clk 0:00:14.4]} 40... fxe5 {[%clk 0:00:25.5]} 41. b4 {[%clk 0:00:13.6]} 41...
Kf6 {[%clk 0:00:22.7]} 42. Kb2 {[%clk 0:00:13.5]} 42... Qd1 {[%clk 0:00:18.8]}
43. Qc6+ {[%clk 0:00:12]} 43... Ke7 {[%clk 0:00:12.5]} 44. Qc5+ {[%clk 0:00:11]}
44... Qd6 {[%clk 0:00:11.9]} 45. Qxd6+ {[%clk 0:00:09.8]} 45... Kxd6 {[%clk
0:00:12.8]} 46. Bxa6 {[%clk 0:00:09.3]} 46... Kc6 {[%clk 0:00:11.6]} 47. Be2
{[%clk 0:00:08.4]} 47... Be4 {[%clk 0:00:11.7]} 48. Bc4 {[%clk 0:00:08]} 48...
Kb6 {[%clk 0:00:11.7]} 49. Bb3 {[%clk 0:00:08.5]} 49... Bd3 {[%clk 0:00:10.8]}
50. Bxc2 {[%clk 0:00:08.4]} 50... Bc4 {[%clk 0:00:11.3]} 51. Be4 {[%clk
0:00:08.4]} 51... Kb5 {[%clk 0:00:11.1]} 52. Kc3 {[%clk 0:00:08.5]} 52... Ba2
{[%clk 0:00:10.7]} 53. Kb2 {[%clk 0:00:08.4]} 53... Bc4 {[%clk 0:00:09.3]} 54.
Kc3 {[%clk 0:00:08.4]} 54... Ba2 {[%clk 0:00:09.6]} 55. Bc2 {[%clk 0:00:08.4]}
55... Bd5 {[%clk 0:00:08.9]} 56. a4+ {[%clk 0:00:08.4]} 56... Kb6 {[%clk
0:00:09.4]} 57. Bd3 {[%clk 0:00:06.1]} 57... Bc6 {[%clk 0:00:09.7]} 58. b5
{[%clk 0:00:05.8]} 58... Bd5 {[%clk 0:00:09.2]} 59. Kb4 {[%clk 0:00:06.1]} 59...
e4 {[%clk 0:00:09.1]} 60. a5+ {[%clk 0:00:06.5]} 60... Kb7 {[%clk 0:00:09.5]}
61. Be2 {[%clk 0:00:06.8]} 61... Be6 {[%clk 0:00:08.4]} 62. Kc5 {[%clk
0:00:07.3]} 62... e3 {[%clk 0:00:07.8]} 63. b6 {[%clk 0:00:06.9]} 63... Bd7
{[%clk 0:00:06.6]} 64. a6+ {[%clk 0:00:06.7]} 64... Kb8 {[%clk 0:00:07]} 65. Kd6
{[%clk 0:00:07.2]} 65... Bb5 {[%clk 0:00:06.7]} 66. Bxb5 {[%clk 0:00:06]} 66...
e2 {[%clk 0:00:05.6]} 67. Bxe2 {[%clk 0:00:06.9]} 67... Ka8 {[%clk 0:00:06]} 68.
Bf3+ {[%clk 0:00:06.5]} 68... Kb8 {[%clk 0:00:06.1]} 69. a7+ {[%clk 0:00:07.4]}
69... Kc8 {[%clk 0:00:06.4]} 70. a8=Q# {[%clk 0:00:07.7]} 1-0

[Event "*** Titled Tuesday Blitz"]
[Site "Chess.com"]
[Date "2020.10.20"]
[Round "1"]
[White "Iskusnyh"]
[Black "PauloCesarCosta_sad"]
[Result "0-1"]
[WhiteElo "2556"]
[BlackElo "2269"]
[TimeControl "180+1"]
[EndTime "10:08:28 PDT"]
[Termination "PauloCesarCosta_sad won on time"]

1. d4 {[%clk 0:03:00.4]} 1... d5 {[%clk 0:02:59.4]} 2. c4 {[%clk 0:03:00.5]}
2... c6 {[%clk 0:02:59.2]} 3. Nf3 {[%clk 0:03:00.5]} 3... e6 {[%clk 0:02:59]} 4.
b3 {[%clk 0:02:58.3]} 4... Nf6 {[%clk 0:02:26.4]} 5. e3 {[%clk 0:02:56.9]} 5...
Bb4+ {[%clk 0:02:16.6]} 6. Nbd2 {[%clk 0:02:54.4]} 6... Ne4 {[%clk 0:02:08.7]}
7. Bd3 {[%clk 0:02:52.1]} 7... f5 {[%clk 0:02:05]} 8. O-O {[%clk 0:02:51.5]}
8... Nxd2 {[%clk 0:01:57.9]} 9. Bxd2 {[%clk 0:02:49]} 9... Bxd2 {[%clk
0:01:57.8]} 10. Qxd2 {[%clk 0:02:49.1]} 10... O-O {[%clk 0:01:58]} 11. b4 {[%clk
0:02:45]} 11... dxc4 {[%clk 0:01:40.9]} 12. Bxc4 {[%clk 0:02:43.9]} 12... Qd6
{[%clk 0:01:41.8]} 13. Qb2 {[%clk 0:02:21.9]} 13... Nd7 {[%clk 0:01:39.8]} 14.
Rfd1 {[%clk 0:02:15.7]} 14... Nb6 {[%clk 0:01:32.1]} 15. Be2 {[%clk 0:02:13]}
15... Nd5 {[%clk 0:01:19.6]} 16. b5 {[%clk 0:02:11]} 16... cxb5 {[%clk
0:01:10.6]} 17. Bxb5 {[%clk 0:02:03.1]} 17... a6 {[%clk 0:01:10.7]} 18. Be2
{[%clk 0:02:00.5]} 18... b5 {[%clk 0:01:10.8]} 19. Rac1 {[%clk 0:01:58]} 19...
Bb7 {[%clk 0:01:05.2]} 20. Rc5 {[%clk 0:01:57.4]} 20... Nb6 {[%clk 0:00:58.5]}
21. Qb4 {[%clk 0:01:16.6]} 21... Rad8 {[%clk 0:00:57.8]} 22. Qa5 {[%clk
0:01:14.3]} 22... Bxf3 {[%clk 0:00:45.5]} 23. Bxf3 {[%clk 0:01:08.8]} 23... Nc4
{[%clk 0:00:46.4]} 24. Qc7 {[%clk 0:00:59.3]} 24... f4 {[%clk 0:00:37.6]} 25.
Qxd6 {[%clk 0:00:51.9]} 25... Rxd6 {[%clk 0:00:38.5]} 26. e4 {[%clk 0:00:49.2]}
26... Rfd8 {[%clk 0:00:32.4]} 27. d5 {[%clk 0:00:48.8]} 27... Kf7 {[%clk
0:00:27.7]} 28. h4 {[%clk 0:00:44.5]} 28... exd5 {[%clk 0:00:27.5]} 29. exd5
{[%clk 0:00:43.3]} 29... Kf6 {[%clk 0:00:17.3]} 30. Rd4 {[%clk 0:00:34.5]} 30...
Kf5 {[%clk 0:00:11.9]} 31. Rc7 {[%clk 0:00:33.5]} 31... R8d7 {[%clk 0:00:10.8]}
32. Rxd7 {[%clk 0:00:31.8]} 32... Rxd7 {[%clk 0:00:10.8]} 33. g4+ {[%clk
0:00:31.6]} 33... fxg3 {[%clk 0:00:10.4]} 34. fxg3 {[%clk 0:00:30.5]} 34... Rd6
{[%clk 0:00:07.9]} 35. Rf4+ {[%clk 0:00:24.7]} 35... Kg6 {[%clk 0:00:07.1]} 36.
h5+ {[%clk 0:00:18.2]} 36... Kg5 {[%clk 0:00:06]} 37. Rf7 {[%clk 0:00:17.7]}
37... g6 {[%clk 0:00:05.2]} 38. Rxh7 {[%clk 0:00:16.5]} 38... gxh5 {[%clk
0:00:04.5]} 39. Rxh5+ {[%clk 0:00:16.1]} 39... Kg6 {[%clk 0:00:04.6]} 40. Rh8
{[%clk 0:00:13.6]} 40... Nd2 {[%clk 0:00:04.5]} 41. Bg2 {[%clk 0:00:12]} 41...
Nc4 {[%clk 0:00:03.6]} 42. Kf2 {[%clk 0:00:10.9]} 42... Kg7 {[%clk 0:00:03.9]}
43. Ra8 {[%clk 0:00:08.9]} 43... a5 {[%clk 0:00:03.1]} 44. Ra7+ {[%clk
0:00:07.7]} 44... Kf6 {[%clk 0:00:02.7]} 45. Bf3 {[%clk 0:00:08.2]} 45... Ke5
{[%clk 0:00:02.5]} 46. Re7+ {[%clk 0:00:07.2]} 46... Kd4 {[%clk 0:00:02.5]} 47.
Re4+ {[%clk 0:00:06.8]} 47... Kc5 {[%clk 0:00:02.8]} 48. Re1 {[%clk 0:00:06]}
48... Nd2 {[%clk 0:00:03.1]} 49. Bg2 {[%clk 0:00:05.4]} 49... Nc4 {[%clk
0:00:02.9]} 50. g4 {[%clk 0:00:05.3]} 50... a4 {[%clk 0:00:03.3]} 51. Kg3 {[%clk
0:00:05.3]} 51... Rg6 {[%clk 0:00:03.4]} 52. Kf4 {[%clk 0:00:03.4]} 52... b4
{[%clk 0:00:03.2]} 53. Kf5 {[%clk 0:00:03.4]} 53... Rg8 {[%clk 0:00:02.4]} 54.
g5 {[%clk 0:00:03.4]} 54... b3 {[%clk 0:00:02.8]} 55. axb3 {[%clk 0:00:02.4]}
55... axb3 {[%clk 0:00:03.7]} 56. g6 {[%clk 0:00:03]} 56... b2 {[%clk
0:00:03.6]} 57. Kf6 {[%clk 0:00:02.2]} 57... Na3 {[%clk 0:00:03.9]} 58. g7
{[%clk 0:00:01.8]} 58... Rxg7 {[%clk 0:00:04]} 0-1

[Event "*** Titled Tuesday Blitz"]
[Site "Chess.com"]
[Date "2020.10.20"]
[Round "1"]
[White "Brave_spirit12"]
[Black "JiiHart"]
[Result "1/2-1/2"]
[WhiteElo "2476"]
[BlackElo "2065"]
[TimeControl "180+1"]
[EndTime "10:08:29 PDT"]
[Termination "Game drawn - insufficient material"]

1. e4 {[%clk 0:02:59]} 1... c5 {[%clk 0:02:59.1]} 2. c3 {[%clk 0:02:58.5]} 2...
d5 {[%clk 0:02:58]} 3. exd5 {[%clk 0:02:59.4]} 3... Qxd5 {[%clk 0:02:58.3]} 4.
Nf3 {[%clk 0:02:59.1]} 4... Nc6 {[%clk 0:02:57.8]} 5. d4 {[%clk 0:02:58.2]} 5...
cxd4 {[%clk 0:02:57.1]} 6. cxd4 {[%clk 0:02:58.3]} 6... Bg4 {[%clk 0:02:56.3]}
7. Be2 {[%clk 0:02:58]} 7... e6 {[%clk 0:02:56.3]} 8. Nc3 {[%clk 0:02:58]} 8...
Qa5 {[%clk 0:02:55.9]} 9. O-O {[%clk 0:02:58]} 9... Nf6 {[%clk 0:02:55.5]} 10.
h3 {[%clk 0:02:55]} 10... Bh5 {[%clk 0:02:55.2]} 11. Bd2 {[%clk 0:02:46.5]}
11... Be7 {[%clk 0:02:55.1]} 12. Nb5 {[%clk 0:02:40]} 12... Qd8 {[%clk
0:02:53.5]} 13. Ne5 {[%clk 0:02:31.1]} 13... Bxe2 {[%clk 0:02:41.6]} 14. Qxe2
{[%clk 0:02:30]} 14... O-O {[%clk 0:02:37.8]} 15. Rfd1 {[%clk 0:02:08.4]} 15...
a6 {[%clk 0:02:33.6]} 16. Nxc6 {[%clk 0:02:06.4]} 16... bxc6 {[%clk 0:02:30.4]}
17. Nc3 {[%clk 0:02:06.2]} 17... Qxd4 {[%clk 0:02:24.4]} 18. Bg5 {[%clk
0:02:04.2]} 18... Qa7 {[%clk 0:02:09.3]} 19. Qc4 {[%clk 0:01:57.9]} 19... Qc5
{[%clk 0:01:48.3]} 20. Qxc5 {[%clk 0:01:38.1]} 20... Bxc5 {[%clk 0:01:47.4]} 21.
Bxf6 {[%clk 0:01:38.7]} 21... gxf6 {[%clk 0:01:47.8]} 22. Ne4 {[%clk 0:01:39.1]}
22... Be7 {[%clk 0:01:48]} 23. Rd7 {[%clk 0:01:38.8]} 23... Rfe8 {[%clk
0:01:45.3]} 24. Rad1 {[%clk 0:01:31.4]} 24... f5 {[%clk 0:01:43.4]} 25. Nc3
{[%clk 0:01:30.7]} 25... Rad8 {[%clk 0:01:22.6]} 26. Na4 {[%clk 0:01:12]} 26...
Bf6 {[%clk 0:01:04.5]} 27. g3 {[%clk 0:01:02.5]} 27... Rxd7 {[%clk 0:00:48.1]}
28. Rxd7 {[%clk 0:01:03.4]} 28... Rd8 {[%clk 0:00:36.4]} 29. Rc7 {[%clk
0:00:58.1]} 29... Rd1+ {[%clk 0:00:34.4]} 30. Kg2 {[%clk 0:00:57.3]} 30... Rd2
{[%clk 0:00:34]} 31. Kf1 {[%clk 0:00:42.4]} 31... Bd4 {[%clk 0:00:31.1]} 32. Rd7
{[%clk 0:00:41.5]} 32... e5 {[%clk 0:00:21.4]} 33. f4 {[%clk 0:00:35.4]} 33...
f6 {[%clk 0:00:20.6]} 34. Ke1 {[%clk 0:00:27.1]} 34... Rg2 {[%clk 0:00:19.4]}
35. Rd6 {[%clk 0:00:19.7]} 35... Rxg3 {[%clk 0:00:18.7]} 36. Rxf6 {[%clk
0:00:15.9]} 36... Rxh3 {[%clk 0:00:18.4]} 37. fxe5 {[%clk 0:00:10.2]} 37... Bxe5
{[%clk 0:00:16.3]} 38. Rxf5 {[%clk 0:00:09]} 38... Rh1+ {[%clk 0:00:16.3]} 39.
Kf2 {[%clk 0:00:08.7]} 39... Rh2+ {[%clk 0:00:16.7]} 40. Kg1 {[%clk 0:00:08.2]}
40... Re2 {[%clk 0:00:16.1]} 41. Kf1 {[%clk 0:00:06.1]} 41... Re4 {[%clk
0:00:13.9]} 42. Nc5 {[%clk 0:00:06.4]} 42... Rf4+ {[%clk 0:00:13.7]} 43. Rxf4
{[%clk 0:00:06.4]} 43... Bxf4 {[%clk 0:00:14.6]} 44. Nxa6 {[%clk 0:00:06.9]}
44... Be5 {[%clk 0:00:13.7]} 45. b3 {[%clk 0:00:05.7]} 45... Bd6 {[%clk
0:00:13]} 46. a4 {[%clk 0:00:05.1]} 46... Kf7 {[%clk 0:00:13]} 47. b4 {[%clk
0:00:05.2]} 47... Ke6 {[%clk 0:00:12.6]} 48. b5 {[%clk 0:00:05.7]} 48... cxb5
{[%clk 0:00:12.3]} 49. axb5 {[%clk 0:00:06.6]} 49... Kd7 {[%clk 0:00:11.7]} 50.
b6 {[%clk 0:00:06.6]} 50... Kc8 {[%clk 0:00:11.7]} 51. Ke2 {[%clk 0:00:05.6]}
51... Kb7 {[%clk 0:00:11.7]} 52. Nc7 {[%clk 0:00:06.1]} 52... Bxc7 {[%clk
0:00:11.7]} 53. bxc7 {[%clk 0:00:07]} 53... Kxc7 {[%clk 0:00:12.1]} 54. Kf3
{[%clk 0:00:07.5]} 54... Kd7 {[%clk 0:00:12.3]} 55. Kg4 {[%clk 0:00:08.4]} 55...
Ke7 {[%clk 0:00:12.7]} 56. Kh5 {[%clk 0:00:09.3]} 56... Kf7 {[%clk 0:00:12.9]}
57. Kh6 {[%clk 0:00:10.2]} 57... Kg8 {[%clk 0:00:13.3]} 58. Kh5 {[%clk
0:00:10.7]} 58... Kg7 {[%clk 0:00:13.5]} 59. Kg5 {[%clk 0:00:11.6]} 59... h6+
{[%clk 0:00:13.4]} 60. Kh5 {[%clk 0:00:12.5]} 60... Kh7 {[%clk 0:00:13.8]} 61.
Kh4 {[%clk 0:00:13.4]} 61... Kg6 {[%clk 0:00:14]} 62. Kg4 {[%clk 0:00:11.2]}
62... h5+ {[%clk 0:00:13.1]} 63. Kh4 {[%clk 0:00:10.6]} 63... Kh6 {[%clk
0:00:13.2]} 64. Kh3 {[%clk 0:00:10.9]} 64... Kg5 {[%clk 0:00:13.5]} 65. Kg3
{[%clk 0:00:11.5]} 65... h4+ {[%clk 0:00:13.7]} 66. Kh3 {[%clk 0:00:12.4]} 66...
Kh5 {[%clk 0:00:14]} 67. Kh2 {[%clk 0:00:13.3]} 67... Kg5 {[%clk 0:00:14.4]} 68.
Kg2 {[%clk 0:00:14.2]} 68... h3+ {[%clk 0:00:14.8]} 69. Kh2 {[%clk 0:00:15.1]}
69... Kf5 {[%clk 0:00:14.5]} 70. Kxh3 {[%clk 0:00:15.4]} 1/2-1/2

[Event "*** Titled Tuesday Blitz"]
[Site "Chess.com"]
[Date "2020.10.20"]
[Round "1"]
[White "Mazetovic"]
[Black "Andrii_Prydun"]
[Result "1-0"]
[WhiteElo "2752"]
[BlackElo "2375"]
[TimeControl "180+1"]
[EndTime "10:08:37 PDT"]
[Termination "Mazetovic won by resignation"]

1. e4 {[%clk 0:02:58.5]} 1... d5 {[%clk 0:02:24.2]} 2. exd5 {[%clk 0:02:55.1]}
2... Qxd5 {[%clk 0:02:25.1]} 3. Nc3 {[%clk 0:02:54.4]} 3... Qd6 {[%clk
0:02:25.5]} 4. d4 {[%clk 0:02:53.4]} 4... Nf6 {[%clk 0:02:24]} 5. Nf3 {[%clk
0:02:50.8]} 5... c6 {[%clk 0:02:23.8]} 6. Ne5 {[%clk 0:02:47.6]} 6... Nbd7
{[%clk 0:02:23.1]} 7. Nc4 {[%clk 0:02:47.1]} 7... Qc7 {[%clk 0:02:21.4]} 8. Qf3
{[%clk 0:02:40.6]} 8... Nb6 {[%clk 0:02:17.7]} 9. Bf4 {[%clk 0:02:38.7]} 9...
Qd8 {[%clk 0:02:17.4]} 10. Ne5 {[%clk 0:02:31.2]} 10... Qxd4 {[%clk 0:02:03.6]}
11. Bd3 {[%clk 0:02:09.1]} 11... h5 {[%clk 0:01:58.1]} 12. O-O-O {[%clk
0:01:59.5]} 12... Bg4 {[%clk 0:01:55.7]} 13. Nxg4 {[%clk 0:01:51.4]} 13... hxg4
{[%clk 0:01:53.6]} 14. Qe3 {[%clk 0:01:51.1]} 14... Qxe3+ {[%clk 0:01:52.3]} 15.
Bxe3 {[%clk 0:01:51]} 15... Nbd5 {[%clk 0:01:51.8]} 16. Bd4 {[%clk 0:01:44.3]}
16... Nxc3 {[%clk 0:01:37.2]} 17. Bxc3 {[%clk 0:01:43.4]} 17... e6 {[%clk
0:01:37.1]} 18. Be2 {[%clk 0:01:36.2]} 18... Bc5 {[%clk 0:01:35.3]} 19. Bd4
{[%clk 0:01:32.2]} 19... Bxd4 {[%clk 0:01:33.9]} 20. Rxd4 {[%clk 0:01:32.3]}
20... Rd8 {[%clk 0:01:34.1]} 21. Ra4 {[%clk 0:01:30.7]} 21... a6 {[%clk
0:01:32.5]} 22. Bxg4 {[%clk 0:01:25.1]} 22... b5 {[%clk 0:00:37.5]} 23. Rf4
{[%clk 0:01:23.8]} 23... Nd5 {[%clk 0:00:34.5]} 24. Rd4 {[%clk 0:01:12.6]} 24...
c5 {[%clk 0:00:33.1]} 25. Rd2 {[%clk 0:01:11.5]} 25... c4 {[%clk 0:00:28]} 26.
c3 {[%clk 0:01:10.6]} 26... Nf4 {[%clk 0:00:26.2]} 27. g3 {[%clk 0:00:58.8]}
27... Nd3+ {[%clk 0:00:24.6]} 28. Kc2 {[%clk 0:00:57.9]} 28... Ke7 {[%clk
0:00:24]} 29. f4 {[%clk 0:00:57.4]} 29... Nc5 {[%clk 0:00:17.7]} 30. Rhd1 {[%clk
0:00:53.3]} 30... Rxd2+ {[%clk 0:00:16.1]} 31. Rxd2 {[%clk 0:00:53.6]} 31... Ne4
{[%clk 0:00:15.3]} 32. Re2 {[%clk 0:00:52.7]} 32... Nc5 {[%clk 0:00:15.4]} 33.
f5 {[%clk 0:00:51]} 33... Kf6 {[%clk 0:00:09.5]} 34. fxe6 {[%clk 0:00:51.1]}
34... fxe6 {[%clk 0:00:10.4]} 35. h4 {[%clk 0:00:50.9]} 35... e5 {[%clk
0:00:10.5]} 36. Bf3 {[%clk 0:00:49.6]} 36... Rd8 {[%clk 0:00:09.2]} 37. Rf2
{[%clk 0:00:47.6]} 37... Ke7 {[%clk 0:00:08.2]} 38. Re2 {[%clk 0:00:46.9]} 38...
Kf6 {[%clk 0:00:08.1]} 39. Bg4 {[%clk 0:00:46.8]} 39... e4 {[%clk 0:00:07.5]}
40. Rf2+ {[%clk 0:00:46.3]} 40... Ke7 {[%clk 0:00:06.9]} 41. Rf5 {[%clk
0:00:45.7]} 41... Nd3 {[%clk 0:00:07]} 42. Rf1 {[%clk 0:00:43.2]} 42... Re8
{[%clk 0:00:06.7]} 43. Be2 {[%clk 0:00:42.3]} 43... Kd6 {[%clk 0:00:06.8]} 44.
Kd2 {[%clk 0:00:42.6]} 44... e3+ {[%clk 0:00:06.8]} 45. Kc2 {[%clk 0:00:43]}
45... Nc5 {[%clk 0:00:07.1]} 46. Rf7 {[%clk 0:00:40.5]} 46... Re7 {[%clk
0:00:07.4]} 47. Rf5 {[%clk 0:00:39.4]} 47... Ne4 {[%clk 0:00:07.1]} 48. Rf3
{[%clk 0:00:37.7]} 48... Nd2 {[%clk 0:00:07.2]} 49. Rf4 {[%clk 0:00:37.6]} 49...
Ne4 {[%clk 0:00:07.3]} 50. g4 {[%clk 0:00:36.1]} 50... Ng3 {[%clk 0:00:07.3]}
51. Kd1 {[%clk 0:00:33.7]} 51... Ke5 {[%clk 0:00:07.7]} 52. Rf3 {[%clk
0:00:30.6]} 52... Rd7+ {[%clk 0:00:04.2]} 53. Ke1 {[%clk 0:00:30.9]} 53... Ne4
{[%clk 0:00:03]} 54. Rxe3 {[%clk 0:00:30.6]} 54... Kf4 {[%clk 0:00:02.5]} 55.
Rf3+ {[%clk 0:00:30.4]} 55... Ke5 {[%clk 0:00:02.7]} 56. Rf5+ {[%clk 0:00:30.5]}
56... Ke6 {[%clk 0:00:02.6]} 57. Rf4 {[%clk 0:00:24.9]} 57... Nd6 {[%clk
0:00:03.1]} 58. g5 {[%clk 0:00:25.1]} 58... Re7 {[%clk 0:00:03.4]} 59. Kf2
{[%clk 0:00:21.7]} 59... Ke5 {[%clk 0:00:04.3]} 60. Rf8 {[%clk 0:00:20.4]} 60...
Ne4+ {[%clk 0:00:05.2]} 61. Kg2 {[%clk 0:00:20.7]} 61... Rd7 {[%clk 0:00:05.8]}
62. Re8+ {[%clk 0:00:20]} 62... Kf4 {[%clk 0:00:06.2]} 63. Rf8+ {[%clk
0:00:19.4]} 63... Ke3 {[%clk 0:00:06.7]} 64. Bf3 {[%clk 0:00:16.1]} 64... Rd2+
{[%clk 0:00:07.6]} 65. Kh3 {[%clk 0:00:15.7]} 65... Nf2+ {[%clk 0:00:07.7]} 66.
Kg3 {[%clk 0:00:16.1]} 66... Rxb2 {[%clk 0:00:06.2]} 67. Re8+ {[%clk 0:00:15.9]}
67... Kd3 {[%clk 0:00:06.6]} 68. h5 {[%clk 0:00:16.2]} 68... Kxc3 {[%clk
0:00:03]} 69. h6 {[%clk 0:00:16.6]} 69... gxh6 {[%clk 0:00:03.9]} 70. gxh6
{[%clk 0:00:16.7]} 70... Nd3 {[%clk 0:00:01.9]} 71. h7 {[%clk 0:00:16.7]} 1-0

[Event "*** Titled Tuesday Blitz"]
[Site "Chess.com"]
[Date "2020.10.20"]
[Round "1"]
[White "AleksibFan"]
[Black "Morshynska"]
[Result "1-0"]
[WhiteElo "2573"]
[BlackElo "2255"]
[TimeControl "180+1"]
[EndTime "10:08:44 PDT"]
[Termination "AleksibFan won on time"]

1. d4 {[%clk 0:03:00.9]} 1... d5 {[%clk 0:02:59.6]} 2. Nf3 {[%clk 0:03:00.5]}
2... e6 {[%clk 0:03:00.5]} 3. g3 {[%clk 0:03:00.1]} 3... Nf6 {[%clk 0:03:01.4]}
4. Bg2 {[%clk 0:03:00.4]} 4... Bd6 {[%clk 0:03:00]} 5. O-O {[%clk 0:03:00.4]}
5... O-O {[%clk 0:02:59.7]} 6. c4 {[%clk 0:03:00.1]} 6... b6 {[%clk 0:02:53.3]}
7. Ne5 {[%clk 0:02:53.1]} 7... Bb7 {[%clk 0:02:51.4]} 8. Nc3 {[%clk 0:02:50.5]}
8... a6 {[%clk 0:02:50.5]} 9. cxd5 {[%clk 0:02:34.3]} 9... exd5 {[%clk
0:02:51.4]} 10. Bf4 {[%clk 0:02:32.7]} 10... h6 {[%clk 0:02:33.5]} 11. Qb3
{[%clk 0:02:24]} 11... c6 {[%clk 0:02:25.9]} 12. Na4 {[%clk 0:02:14.6]} 12... b5
{[%clk 0:02:21.5]} 13. Nc5 {[%clk 0:02:01.1]} 13... Bxc5 {[%clk 0:02:17.1]} 14.
dxc5 {[%clk 0:02:02]} 14... Nbd7 {[%clk 0:02:15.4]} 15. Nd3 {[%clk 0:01:54]}
15... a5 {[%clk 0:02:02.7]} 16. a3 {[%clk 0:01:42.5]} 16... Re8 {[%clk
0:01:59.5]} 17. Qc2 {[%clk 0:01:39.2]} 17... Ne4 {[%clk 0:01:52.6]} 18. f3
{[%clk 0:01:23.2]} 18... Ng5 {[%clk 0:01:35.9]} 19. Rae1 {[%clk 0:00:48.7]}
19... Ne6 {[%clk 0:01:12.6]} 20. Be3 {[%clk 0:00:41.1]} 20... Qf6 {[%clk
0:01:09.6]} 21. Bf2 {[%clk 0:00:36]} 21... Nd4 {[%clk 0:00:48.2]} 22. Qd1 {[%clk
0:00:35.3]} 22... a4 {[%clk 0:00:39]} 23. e4 {[%clk 0:00:31.8]} 23... dxe4
{[%clk 0:00:34.9]} 24. fxe4 {[%clk 0:00:32.6]} 24... Nb3 {[%clk 0:00:34.9]} 25.
e5 {[%clk 0:00:19.3]} 25... Qe7 {[%clk 0:00:34]} 26. Qh5 {[%clk 0:00:13.9]}
26... Ndxc5 {[%clk 0:00:26.7]} 27. Nf4 {[%clk 0:00:08.5]} 27... Ne6 {[%clk
0:00:20.2]} 28. Bh3 {[%clk 0:00:07.3]} 28... Nxf4 {[%clk 0:00:19.3]} 29. gxf4
{[%clk 0:00:08.2]} 29... Kh8 {[%clk 0:00:18.7]} 30. f5 {[%clk 0:00:07.2]} 30...
Qg5+ {[%clk 0:00:11.8]} 31. Qxg5 {[%clk 0:00:07.1]} 31... hxg5 {[%clk
0:00:12.7]} 32. Bg3 {[%clk 0:00:06.5]} 32... c5 {[%clk 0:00:11.7]} 33. Rf2
{[%clk 0:00:06.5]} 33... c4 {[%clk 0:00:11.8]} 34. Bg4 {[%clk 0:00:06.2]} 34...
Rad8 {[%clk 0:00:10.9]} 35. e6 {[%clk 0:00:06]} 35... fxe6 {[%clk 0:00:10.7]}
36. fxe6 {[%clk 0:00:06.9]} 36... Bd5 {[%clk 0:00:10.5]} 37. e7 {[%clk
0:00:06.8]} 37... Ra8 {[%clk 0:00:09.5]} 38. Re5 {[%clk 0:00:06.8]} 38... Bf7
{[%clk 0:00:08.2]} 39. Rxf7 {[%clk 0:00:05.6]} 39... Nd4 {[%clk 0:00:07.7]} 40.
Rf2 {[%clk 0:00:04.6]} 40... b4 {[%clk 0:00:06.7]} 41. Rxg5 {[%clk 0:00:04.8]}
41... bxa3 {[%clk 0:00:06.2]} 42. bxa3 {[%clk 0:00:05.7]} 42... c3 {[%clk
0:00:06.8]} 43. Rh5+ {[%clk 0:00:06.2]} 43... Kg8 {[%clk 0:00:06.5]} 44. Rc5
{[%clk 0:00:07.1]} 44... c2 {[%clk 0:00:05]} 45. Be5 {[%clk 0:00:07.2]} 45...
Rab8 {[%clk 0:00:04.1]} 46. Bxd4 {[%clk 0:00:07]} 46... Rb1+ {[%clk 0:00:03.8]}
47. Kg2 {[%clk 0:00:07.2]} 47... c1=Q {[%clk 0:00:03.7]} 48. Rxc1 {[%clk
0:00:07.2]} 48... Rxc1 {[%clk 0:00:04.6]} 49. Bb2 {[%clk 0:00:04.7]} 49... Rc4
{[%clk 0:00:04.4]} 50. Be6+ {[%clk 0:00:04]} 50... Kh7 {[%clk 0:00:03.7]} 51.
Bxc4 {[%clk 0:00:04.9]} 51... Rxe7 {[%clk 0:00:04.6]} 52. Bd3+ {[%clk
0:00:05.6]} 52... g6 {[%clk 0:00:04.4]} 53. Bc3 {[%clk 0:00:05.6]} 53... Rd7
{[%clk 0:00:04.2]} 54. Rd2 {[%clk 0:00:05.4]} 54... Kh6 {[%clk 0:00:04.2]} 55.
Bf6 {[%clk 0:00:04.7]} 55... Rd6 {[%clk 0:00:03.8]} 56. Bc3 {[%clk 0:00:04.5]}
56... Rc6 {[%clk 0:00:03.9]} 57. Bb4 {[%clk 0:00:05.4]} 57... Re6 {[%clk
0:00:02.8]} 58. Bb5 {[%clk 0:00:05.4]} 58... Re5 {[%clk 0:00:02.9]} 59. Bxa4
{[%clk 0:00:05.3]} 59... Rg5+ {[%clk 0:00:03]} 60. Kf1 {[%clk 0:00:05.5]} 60...
Rf5+ {[%clk 0:00:03.4]} 61. Rf2 {[%clk 0:00:05.5]} 61... Rd5 {[%clk 0:00:03.6]}
62. Bb3 {[%clk 0:00:05.2]} 62... Rd3 {[%clk 0:00:03.5]} 63. Bc2 {[%clk
0:00:05.3]} 63... Rh3 {[%clk 0:00:02.3]} 64. Bd2+ {[%clk 0:00:05]} 1-0